bitfinex-derivatives/quotes_SOLF0:USTF0_20250105
["timestamp","ask_amount","ask_price","bid_price","bid_amount"]
[1736114457066,7.43766,213.86,213.84,2.3385]
[1736114458158,7.43766,213.86,213.83,2.3386]
[1736114458365,7.43766,213.84,213.77,99.32518882]
[1736114458557,7.43766,213.82,213.77,99.32518882]
[1736114459659,7.43766,213.82,213.81,2.3387]
[1736114460667,9.99766,213.82,213.81,2.3387]
[1736114461363,9.99766,213.82,213.77,99.32518882]
[1736114461559,7.43766,213.8,213.77,99.32518882]
[1736114462462,7.43766,213.8,213.79,2.339]
[1736114464959,7.43766,213.82,213.81,2.3388]
[1736114465159,9.99766,213.82,213.81,2.3388]
[1736114469671,9.99766,213.82,213.78,2.3391]
[1736114469871,7.43766,213.79,213.77,99.32518882]
[1736114471070,7.43766,213.79,213.78,2.3392]
[1736114472366,4.8987,213.82,213.78,2.3392]
[1736114472571,7.43766,213.79,213.78,2.3392]
[1736114474287,7.43766,213.79,213.77,99.32518882]
[1736114474973,2.3389,213.8,213.77,99.32518882]
[1736114475172,7.43766,213.78,213.77,99.32518882]
[1736114475375,7.43766,213.78,213.76,2.3393]
[1736114475575,2.56,213.77,213.76,2.3393]
[1736114476374,2.56,213.77,213.74,4.13292401]
[1736114476676,4.8993,213.77,213.67,1.4881]
[1736114476872,7.43766,213.71,213.67,1.4881]
[1736114477069,7.43766,213.73,213.67,1.4881]
[1736114478982,2.3394,213.76,213.71,2.3398]
[1736114479186,2.56,213.77,213.67,1.4881]
[1736114479482,2.3397,213.73,213.69,2.34]
[1736114479680,2.56,213.72,213.69,2.34]
[1736114480883,7.43766,213.7,213.69,2.34]
[1736114481180,2.56,213.72,213.67,1.4881]
[1736114481377,2.56,213.72,213.71,2.3399]
[1736114482579,9.99766,213.72,213.58,5.95141057]
[1736114482782,7.43766,213.59,213.53,22.49630165]
[1736114482978,9.99766,213.59,213.54,7.99813388]
[1736114483179,9.99766,213.59,213.58,2.3413]
[1736114483680,9.99766,213.59,213.54,1.494]
[1736114483876,7.43766,213.56,213.55,2.3417]
[1736114485284,7.43766,213.56,213.53,2.3418]
[1736114485487,7.43766,213.54,213.53,2.3418]
[1736114485675,9.99766,213.54,213.53,2.3418]
[1736114488485,2.56,213.54,213.53,2.3418]
[1736114489481,0.2551,213.54,213.51,7.43766]
[1736114489783,0.2551,213.54,213.53,2.3419]
[1736114490983,7.43766,213.57,213.56,2.3416]
[1736114491186,9.99766,213.57,213.56,2.3416]
[1736114493389,2.3408,213.63,213.51,7.43766]
[1736114493686,7.43766,213.58,213.57,2.3414]
[1736114505699,7.43766,213.58,213.5,3.72654882]
[1736114506003,7.43766,213.53,213.5,3.72654882]
[1736114507401,7.43766,213.53,213.52,2.342]
[1736114508797,7.43766,213.55,213.54,2.3418]
[1736114509208,10.03766,213.57,213.5,3.72654882]
[1736114509406,10.03766,213.57,213.56,2.3416]
[1736114514915,10.03766,213.57,213.54,2.3418]
[1736114515210,7.43766,213.55,213.54,2.3418]
[1736114518608,2.6,213.55,213.51,7.43766]
[1736114519114,7.43766,213.59,213.58,2.3413]
[1736114519310,10.03766,213.59,213.58,2.3413]
[1736114527319,7.43766,213.59,213.58,2.3413]
[1736114527618,7.43766,213.62,213.55,7.43766]
[1736114527820,2.6,213.61,213.57,7.43766]
[1736114528412,2.6,213.61,213.6,2.3411]
[1736114528616,2.6,213.61,213.57,7.43766]
[1736114529527,2.6,213.61,213.6,2.3411]
[1736114533520,2.6,213.61,213.59,2.3412]
[1736114533713,7.43766,213.6,213.52,1.5162]
[1736114533919,7.43766,213.57,213.52,1.5162]
[1736114534120,2.58,213.56,213.55,2.3417]
[1736114539029,1.4691,213.69,213.52,7.43766]
[1736114539226,2.3408,213.64,213.59,2.3412]
[1736114539429,7.43766,213.6,213.59,2.3412]
[1736114539616,7.43766,213.6,213.52,7.43766]
[1736114539617,1.4691,213.69,213.52,7.43766]
[1736114539827,2.58,213.68,213.54,7.43766]
[1736114540018,7.43766,213.62,213.54,7.43766]
[1736114540223,2.58,213.61,213.54,7.43766]
[1736114540426,2.58,213.61,213.6,2.3411]
[1736114545726,2.58,213.61,213.59,2.3412]
[1736114545927,7.43766,213.59,213.52,7.43766]
[1736114546435,7.43766,213.59,213.57,2.3414]
[1736114549029,7.43766,213.59,213.55,2.3416]
[1736114549229,7.43766,213.57,213.55,2.3416]
[1736114549432,2.58,213.56,213.55,2.3416]
[1736114552532,2.58,213.56,213.53,2.3418]
[1736114552837,7.43766,213.55,213.53,2.3418]
[1736114554840,7.43766,213.55,213.5,3.72654882]
[1736114555042,7.43766,213.55,213.54,2.3418]
[1736114575851,7.43766,213.57,213.56,2.3416]
[1736114576052,9.99766,213.57,213.56,2.3416]
[1736114581862,2.56,213.57,213.56,2.3416]
[1736114582463,7.43766,213.59,213.58,2.3413]
[1736114582663,9.99766,213.59,213.58,2.3413]
[1736114583160,53.58,213.67,213.54,7.43766]
[1736114583358,7.43766,213.64,213.56,7.43766]
[1736114584061,7.43766,213.62,213.61,2.3409]
[1736114589561,7.43766,213.62,213.54,7.43766]
[1736114589757,7.43766,213.6,213.54,7.43766]
[1736114589960,7.43766,213.58,213.5,2.9462]
[1736114590167,7.43766,213.58,213.52,7.43766]
[1736114591266,7.43766,213.58,213.5,10.38386]
[1736114591465,2.56,213.59,213.5,10.38386]
[1736114591466,7.43766,213.56,213.5,10.38386]
[1736114592272,7.43766,213.56,213.55,2.3417]
[1736114595573,7.43766,213.58,213.5,2.9462]
[1736114595767,7.43766,213.58,213.57,2.3414]
[1736114596073,2.56,213.58,213.53,7.43766]
[1736114597565,2.56,213.58,213.57,2.3415]
[1736114605179,9.99766,213.58,213.57,2.3415]
[1736114606281,9.99766,213.58,213.56,2.3416]
[1736114608080,9.99766,213.58,213.54,2.3417]
[1736114608283,7.43766,213.55,213.54,2.3417]
[1736114611385,7.43766,213.57,213.5,2.9462]
[1736114612180,7.43766,213.55,213.5,2.9462]
[1736114612380,7.43766,213.55,213.51,2.3421]
[1736114612685,7.43766,213.55,213.5,2.9462]
[1736114613178,7.43766,213.55,213.52,2.342]
[1736114614588,2.56,213.54,213.52,2.342]
[1736114616084,7.43766,213.53,213.52,2.342]
[1736114625686,2.56,213.54,213.53,2.3419]
[1736114641097,1.4372,213.62,213.55,2.3416]
[1736114641098,7.43766,213.58,213.55,2.3416]
[1736114641297,2.56,213.57,213.55,2.3416]
[1736114641897,7.43766,213.58,213.57,2.3415]
[1736114642098,9.99766,213.58,213.57,2.3415]
[1736114643697,7.43766,213.58,213.57,2.3415]
[1736114643899,9.99766,213.58,213.57,2.3415]
[1736114645202,7.43766,213.58,213.57,2.3415]
[1736114645403,9.99766,213.58,213.57,2.3415]
[1736114645604,7.43766,213.6,213.53,7.43766]
[1736114645805,7.43766,213.6,213.59,2.3412]
[1736114646004,9.99766,213.6,213.59,2.3412]
[1736114646197,9.99766,213.6,213.53,7.43766]
[1736114647303,9.99766,213.6,213.55,2.3417]
[1736114647503,9.99766,213.6,213.53,7.43766]
[1736114648006,9.99766,213.6,213.58,2.3413]
[1736114653108,2.56,213.6,213.58,2.3413]
[1736114653308,1.4838,213.68,213.59,2.3412]
[1736114653502,7.43766,213.62,213.59,2.3412]
[1736114655310,2.56,213.61,213.59,2.3412]
[1736114655805,2.56,213.61,213.55,7.43766]
[1736114656011,7.43766,213.62,213.6,2.3411]
[1736114656207,2.56,213.61,213.6,2.3411]
[1736114657012,7.43766,213.62,213.6,2.3411]
[1736114657210,2.56,213.61,213.6,2.3411]
[1736114671218,9.99766,213.61,213.6,2.3411]
[1736114680817,2.8688,213.73,213.55,7.43766]
[1736114681124,7.43766,213.65,213.57,7.43766]
[1736114681324,2.56,213.66,213.56,105.76552629]
[1736114681325,2.56,213.66,213.59,7.43766]
[1736114682430,2.56,213.66,213.61,7.43766]
[1736114682625,2.56,213.66,213.65,2.3406]
[1736114683929,2.56,213.69,213.63,7.43766]
[1736114684334,2.3396,213.74,213.63,7.43766]
[1736114684534,9.99766,213.71,213.63,7.43766]
[1736114685938,9.99766,213.71,213.69,2.34]
[1736114687235,9.99766,213.71,213.7,2.34]
[1736114687437,2.56,213.71,213.7,2.34]
[1736114687637,9.99766,213.71,213.7,2.34]
[1736114691846,9.99766,213.71,213.61,4.4498]
[1736114692038,7.43766,213.68,213.61,11.88746]
[1736114692234,7.43766,213.68,213.61,16.18670811]
[1736114693248,7.43766,213.68,213.61,11.88746]
[1736114693446,7.43766,213.68,213.67,2.3404]
[1736114704353,7.43766,213.7,213.69,2.34]
[1736114704552,7.43766,213.7,213.65,7.43766]
[1736114704553,2.56,213.7,213.65,7.43766]
[1736114705455,2.56,213.7,213.69,2.3401]
[1736114706144,55.03977869,213.78,213.74,2.3395]
[1736114706351,7.43766,213.75,213.67,7.43766]
[1736114707146,2.56,213.77,213.76,2.3394]
[1736114707348,9.99766,213.77,213.76,2.3394]
[1736114708555,7.43766,213.77,213.76,2.3394]
[1736114708755,9.99766,213.77,213.76,2.3394]
[1736114709450,7.43766,213.77,213.76,2.3394]
[1736114709656,9.99766,213.77,213.76,2.3394]
[1736114719465,53.58,213.8,213.7,4.3449]
[1736114719466,1.4773,213.88,213.73,7.43766]
[1736114719660,3.31431972,213.87,213.8,2.3389]
[1736114719865,1.4773,213.88,213.8,2.3389]
[1736114720169,4.8983,213.87,213.83,2.3386]
[1736114720865,7.43766,213.84,213.83,2.3386]
[1736114721061,2.56,213.87,213.83,2.3386]
[1736114721260,7.43766,213.84,213.83,2.3386]
[1736114724659,7.43766,213.84,213.75,7.43766]
[1736114724966,7.43766,213.82,213.75,7.43766]
[1736114725162,9.97766,213.82,213.75,7.43766]
[1736114726466,9.97766,213.82,213.81,2.3388]
[1736114730163,9.97766,213.82,213.7,4.3449]
[1736114730368,9.97766,213.82,213.71,7.43766]
[1736114730369,7.43766,213.76,213.71,7.43766]
[1736114732469,7.43766,213.76,213.75,2.3395]
[1736114736167,7.43766,213.76,213.71,2.3399]
[1736114736466,7.43766,213.72,213.64,7.43766]
[1736114736674,2.54,213.71,213.64,7.43766]
[1736114736966,2.54,213.71,213.68,7.43766]
[1736114737475,2.54,213.75,213.74,2.3395]
[1736114752288,7.43766,213.76,213.74,2.3395]
[1736114752485,2.54,213.75,213.74,2.3395]
[1736114765691,2.54,213.75,213.72,2.3397]
[1736114765995,7.43766,213.73,213.72,2.3397]
[1736114772299,9.97766,213.73,213.72,2.3397]
[1736114775804,130.54824996,213.87,213.74,2.3396]
[1736114775805,7.43766,213.75,213.74,2.3396]
[1736114776006,9.99766,213.75,213.74,2.3396]
[1736114779207,7.43766,213.75,213.74,2.3396]
[1736114779413,2.54,213.75,213.71,7.43766]
[1736114779614,2.54,213.76,213.71,7.43766]
[1736114780701,2.54,213.76,213.75,2.3395]
[1736114783011,2.54,213.78,213.72,1.449]
[1736114784517,2.54,213.78,213.77,2.3393]
[1736114796125,7.43766,213.79,213.77,2.3393]
[1736114796426,2.54,213.78,213.77,2.3393]
[1736114802136,2.3387,213.82,213.78,2.3392]
[1736114802335,7.43766,213.79,213.78,2.3392]
[1736114819256,9.97766,213.79,213.78,2.3392]
[1736114841561,7.43766,213.79,213.78,2.3392]
[1736114841759,9.97766,213.79,213.78,2.3392]
[1736114849475,9.97766,213.79,213.72,1.449]
[1736114849678,7.43766,213.73,213.68,28.86313553]
[1736114849878,7.43766,213.71,213.68,28.86313553]
[1736114850377,7.43766,213.71,213.68,2.8466]
[1736114851473,7.43766,213.71,213.7,2.34]
[1736114857970,7.43766,213.71,213.69,110.85178966]
[1736114863578,2.54,213.74,213.69,108.51168966]
[1736114863781,2.54,213.73,213.69,108.51168966]
[1736114864176,2.54,213.73,213.72,2.3398]
[1736114864584,7.43766,213.75,213.69,108.51168966]
[1736114864885,2.54,213.74,213.69,108.51168966]
[1736114865587,2.54,213.74,213.73,2.3397]
[1736114879800,9.97766,213.74,213.73,2.3397]
[1736114881906,7.43766,213.74,213.73,2.3397]
[1736114882207,9.97766,213.74,213.73,2.3397]
[1736114882400,2.3389,213.81,213.76,2.3394]
[1736114882599,7.43766,213.79,213.73,7.43766]
[1736114882808,2.54,213.78,213.73,7.43766]
[1736114884412,2.54,213.78,213.77,2.3393]
[1736114893721,9.97766,213.78,213.77,2.3393]
[1736114899216,7.43766,213.78,213.77,2.3393]
[1736114914531,9.97766,213.8,213.79,2.339]
[1736114918930,7.43766,213.8,213.79,2.339]
[1736114919133,9.97766,213.8,213.79,2.339]
[1736114928638,2.54,213.8,213.79,2.339]
[1736114928835,9.97766,213.8,213.79,2.339]
[1736114929029,2.54,213.8,213.79,2.339]
[1736114929233,9.97766,213.8,213.79,2.339]
[1736114931945,9.97766,213.8,213.78,2.3392]
[1736114932137,9.97766,213.8,213.72,7.43766]
[1736114932338,9.97766,213.8,213.74,7.43766]
[1736114932638,9.97766,213.8,213.74,11.75868869]
[1736114933444,9.97766,213.8,213.79,2.339]
[1736114948054,9.97766,213.8,213.78,2.3392]
[1736114948249,7.43766,213.79,213.78,2.3392]
[1736114982688,9.97766,213.79,213.78,2.3392]
[1736114985499,9.97766,213.79,213.76,2.3393]
[1736114985698,7.43766,213.77,213.76,2.3393]
[1736114988701,7.43766,213.77,213.75,2.3395]
[1736114989001,7.43766,213.76,213.75,2.3395]
[1736115006306,2.54,213.79,213.77,2.3392]
[1736115007506,7.43766,213.78,213.77,2.3392]
[1736115015814,7.43766,213.78,213.71,103.23965805]
[1736115016013,7.43766,213.78,213.76,2.3394]
[1736115016414,7.43766,213.78,213.71,103.23965805]
[1736115016614,7.43766,213.78,213.75,2.3395]
[1736115018119,7.43766,213.76,213.73,2.3396]
[1736115018320,7.43766,213.74,213.73,2.3396]
[1736115018717,9.97766,213.74,213.73,2.3396]
[1736115052251,2.3387,213.83,213.79,2.339]
[1736115052453,2.54,213.82,213.75,7.43766]
[1736115052654,46.73685303,213.82,213.75,7.43766]
[1736115052854,2.54,213.81,213.75,7.43766]
[1736115053051,2.54,213.81,213.8,2.3388]
[1736115053247,51.63451303,213.82,213.75,7.43766]
[1736115053454,2.54,213.81,213.75,7.43766]
[1736115054255,2.54,213.81,213.8,2.3389]
[1736115054458,9.97766,213.81,213.8,2.3389]
[1736115060966,9.97766,213.81,213.79,2.339]
[1736115061167,7.43766,213.8,213.79,2.339]
[1736115062860,9.97766,213.8,213.79,2.339]
[1736115063167,9.97766,213.8,213.78,2.3391]
[1736115069373,12.31656,213.8,213.77,2.3392]
[1736115069672,7.43766,213.78,213.75,4.34786204]
[1736115069867,7.43766,213.76,213.75,4.34786204]
[1736115077676,9.97766,213.76,213.75,4.34786204]
[1736115081378,9.97766,213.76,213.75,6.68736204]
[1736115087883,9.97766,213.76,213.75,4.34786204]
[1736115091381,2.3395,213.75,213.73,84.91993727]
[1736115091579,7.43766,213.74,213.73,84.91993727]
[1736115099591,7.43766,213.74,213.73,87.25963727]
[1736115100794,7.43766,213.78,213.75,2.3395]
[1736115101094,2.54,213.77,213.75,2.3395]
[1736115105198,7.43766,213.76,213.75,2.3395]
[1736115105694,7.43766,213.78,213.77,2.3393]
[1736115105898,9.97766,213.78,213.77,2.3393]
[1736115106100,2.54,213.78,213.77,2.3393]
[1736115106293,9.97766,213.78,213.77,2.3393]
[1736115107895,9.97766,213.78,213.73,84.91993727]
[1736115108095,7.43766,213.76,213.73,84.91993727]
[1736115109492,7.43766,213.76,213.75,2.3395]
[1736115114100,9.97766,213.78,213.77,2.3393]
[1736115117502,9.97766,213.78,213.75,2.3395]
[1736115117696,9.97766,213.78,213.73,84.91993727]
[1736115117697,7.43766,213.75,213.73,84.91993727]
[1736115118407,7.43766,213.75,213.74,2.3396]
[1736115121411,7.43766,213.75,213.73,87.25963727]
[1736115122904,7.43766,213.75,213.73,2.3397]
[1736115127607,2.54,213.74,213.73,2.3397]
[1736115134012,2.54,213.74,213.64,1.4886]
[1736115134013,2.54,213.74,213.72,2.3397]
[1736115134309,7.43766,213.73,213.72,2.3397]
[1736115138113,7.43766,213.73,213.72,2.3398]
[1736115139320,7.43766,213.73,213.7,2.34]
[1736115139612,7.43766,213.7,213.65,1.4601]
[1736115139811,7.43766,213.7,213.69,2.3401]
[1736115140310,2.54,213.74,213.72,2.3397]
[1736115140511,2.54,213.73,213.67,7.43766]
[1736115141312,2.54,213.73,213.69,7.43766]
[1736115141604,2.54,213.73,213.72,2.3398]
[1736115171043,9.97766,213.73,213.72,2.3398]
[1736115175149,9.97766,213.73,213.7,2.3399]
[1736115175339,7.43766,213.71,213.7,2.3399]
[1736115187458,7.43766,213.71,213.65,100.10014749]
[1736115189461,7.43766,213.71,213.69,2.3401]
[1736115196656,2.54,213.73,213.66,4.87434183]
[1736115196657,2.3395,213.76,213.66,12.31200183]
[1736115196865,7.43766,213.73,213.68,7.43766]
[1736115197159,9.97766,213.73,213.68,7.43766]
[1736115199570,9.97766,213.73,213.71,2.3398]
[1736115200468,9.97766,213.73,213.72,2.3398]
[1736115203063,2.54,213.73,213.72,2.3398]
[1736115203467,9.97766,213.73,213.72,2.3398]
[1736115207075,2.54,213.73,213.72,2.3398]
[1736115207270,9.97766,213.73,213.72,2.3398]
[1736115207471,47.75038933,213.79,213.66,4.87434183]
[1736115207672,47.75038933,213.79,213.71,7.43766]
[1736115207673,2.56,213.76,213.71,7.43766]
[1736115208473,2.56,213.76,213.75,2.3395]
[1736115214579,2.56,213.76,213.66,4.87434183]
[1736115214773,7.43766,213.72,213.66,4.87434183]
[1736115214972,7.43766,213.72,213.66,12.31200183]
[1736115215878,7.43766,213.72,213.71,2.3399]
[1736115231486,7.43766,213.72,213.66,4.87434183]
[1736115231688,7.43766,213.72,213.7,2.34]
[1736115235986,7.43766,213.72,213.66,4.87434183]
[1736115236187,7.43766,213.72,213.71,2.3399]
[1736115238690,9.97766,213.72,213.71,2.3399]
[1736115240787,2.54,213.74,213.73,2.3396]
[1736115244993,9.97766,213.75,213.73,2.3396]
[1736115247395,9.97766,213.75,213.72,2.3398]
[1736115247597,7.43766,213.73,213.72,2.3398]
[1736115250292,7.43766,213.73,213.68,2.3402]
[1736115250489,7.43766,213.73,213.66,4.87434183]
[1736115251493,7.43766,213.73,213.7,2.34]
[1736115253501,2.3396,213.74,213.7,2.34]
[1736115253693,7.43766,213.72,213.7,2.34]
[1736115255702,2.54,213.75,213.66,4.87434183]
[1736115255703,2.54,213.75,213.66,12.31200183]
[1736115255898,7.43766,213.74,213.66,12.31200183]
[1736115257404,7.43766,213.74,213.71,2.3398]
[1736115266506,9.97766,213.75,213.66,4.87434183]
[1736115266702,8.06938918,213.77,213.67,7.43766]
[1736115266902,8.06938918,213.77,213.69,7.43766]
[1736115267307,7.43766,213.76,213.68,1.5332]
[1736115267611,7.43766,213.76,213.69,7.43766]
[1736115268201,7.43766,213.76,213.71,2.3399]
[1736115268405,7.43766,213.76,213.69,7.43766]
[1736115268908,7.43766,213.76,213.73,2.3397]
[1736115269912,7.43766,213.76,213.74,2.3396]
[1736115271706,2.3389,213.81,213.77,2.3392]
[1736115271915,7.43766,213.79,213.77,2.3392]
[1736115272510,49.99895,213.84,213.75,7.43766]
[1736115272705,7.43766,213.82,213.75,7.43766]
[1736115273704,2.54,213.84,213.8,2.3389]
[1736115273904,7.43766,213.82,213.8,2.3389]
[1736115277019,7.43766,213.82,213.77,7.43766]
[1736115277219,7.43766,213.82,213.81,2.3388]
[1736115277416,7.43766,213.84,213.79,7.43766]
[1736115278919,2.3379,213.9,213.84,2.3384]
[1736115279119,7.43766,213.89,213.83,7.43766]
[1736115281115,7.43766,213.89,213.87,2.3382]
[1736115281718,7.43766,213.89,213.88,2.3381]
[1736115283327,4.8776,213.93,213.88,2.3381]
[1736115283623,7.43766,213.89,213.88,2.3381]
[1736115296041,2.3372,213.96,213.92,2.3376]
[1736115296245,7.43766,213.93,213.87,7.43766]
[1736115296538,7.43766,213.93,213.87,9.97766]
[1736115297438,7.43766,213.93,213.92,2.3376]
[1736115297833,2.3371,213.98,213.87,9.97766]
[1736115298043,7.43766,213.95,213.87,9.97766]
[1736115299444,7.43766,213.95,213.94,2.3374]
[1736115306746,2.9909,213.99,213.89,7.43766]
[1736115307051,4.8765,214.03,213.99,2.3368]
[1736115307246,2.3365,214.03,213.99,2.3368]
[1736115310347,2.3365,214.03,214.0,2.3367]
[1736115310551,7.43766,214.01,214.0,2.3367]
[1736115311149,7.43766,214.01,214.0,2.30723343]
[1736115312451,7.43766,214.03,214.01,2.3366]
[1736115312651,7.43766,214.03,213.96,7.43766]
[1736115313855,7.43766,214.03,214.01,2.3366]
[1736115314754,7.43766,214.03,213.98,2.337]
[1736115315054,7.43766,214.03,213.96,7.43766]
[1736115315455,7.43766,214.04,213.96,7.43766]
[1736115316350,7.43766,214.04,214.02,2.3365]
[1736115322064,7.43766,214.04,213.94,97.47703733]
[1736115322256,7.43766,213.98,213.95,2.54]
[1736115323563,7.43766,213.98,213.97,2.3371]
[1736115325065,7.43766,214.0,213.99,2.3368]
[1736115328264,7.43766,214.02,213.99,2.3368]
[1736115328764,9.77416,214.02,213.98,2.337]
[1736115329162,7.43766,214.02,213.98,2.337]
[1736115330566,7.43766,214.02,213.99,2.3368]
[1736115332164,7.37074414,214.02,213.99,2.3368]
[1736115343279,2.54,214.02,213.94,97.47703733]
[1736115343479,7.43766,213.98,213.94,97.47703733]
[1736115343679,7.43766,213.96,213.94,97.47703733]
[1736115343873,2.54,214.02,213.94,97.47703733]
[1736115344073,7.43766,214.0,213.95,2.3372]
[1736115344377,7.43766,214.0,213.94,97.47703733]
[1736115345373,7.43766,214.0,213.96,2.3371]
[1736115346275,2.3367,214.01,213.96,2.3371]
[1736115346479,7.43766,214.0,213.96,2.3371]
[1736115350782,7.43766,213.98,213.96,2.3371]
[1736115352885,2.3367,214.01,213.97,2.3371]
[1736115353086,7.43766,214.0,213.97,2.3371]
[1736115368290,9.77446,214.0,213.97,2.3371]
[1736115379703,2.54,213.99,213.97,2.3371]
[1736115380713,9.97766,213.99,213.97,2.3371]
[1736115383106,2.54,213.99,213.97,2.3371]
[1736115390317,2.54,213.99,213.98,2.337]
[1736115394013,7.43766,214.0,213.98,2.337]
[1736115394318,9.97766,214.01,213.98,2.337]
[1736115398619,9.97766,214.01,213.93,108.1465342]
[1736115398817,12.31436,214.01,213.93,108.1465342]
[1736115400118,12.31436,214.01,213.96,2.3371]
[1736115405224,7.43766,213.99,213.93,100.7088742]
[1736115405424,9.77456,213.99,213.94,2.3373]
[1736115411025,9.77456,213.99,213.95,2.3373]
[1736115412228,9.77456,213.99,213.94,2.3374]
[1736115412229,2.337,213.98,213.94,2.3374]
[1736115417935,2.337,213.98,213.93,100.7088742]
[1736115418135,2.337,213.98,213.95,2.3373]
[1736115420841,7.43766,213.99,213.95,2.3373]
[1736115423644,2.54,213.98,213.95,2.3373]
[1736115423838,7.43766,213.97,213.93,99.3075742]
[1736115424139,7.43766,213.95,213.85,15.3458819]
[1736115424340,7.43766,213.93,213.85,15.3458819]
[1736115424542,7.43766,213.91,213.85,8.84026]
[1736115425439,7.43766,213.91,213.9,2.3378]
[1736115428647,9.97766,213.93,213.85,8.84026]
[1736115428845,9.97766,213.93,213.92,2.3376]
[1736115430144,9.97766,213.93,213.88,4.52944138]
[1736115431440,9.97766,213.93,213.89,2.3379]
[1736115432646,9.97766,213.93,213.9,2.3378]
[1736115436646,9.97766,213.93,213.91,2.3377]
[1736115439643,9.97766,213.93,213.88,4.52944138]
[1736115439848,1.4848,213.99,213.9,7.43766]
[1736115440147,7.43766,213.97,213.9,7.43766]
[1736115440348,14.79971977,213.97,213.9,7.43766]
[1736115441455,14.79971977,213.97,213.94,2.3373]
[1736115442653,7.43766,213.95,213.94,2.3373]
[1736115449864,7.43766,213.95,213.88,4.52944138]
[1736115450058,7.43766,213.95,213.93,2.3375]
[1736115455271,2.3372,213.96,213.93,2.3375]
[1736115455472,7.43766,213.94,213.93,2.3375]
[1736115455874,7.43766,213.94,213.88,4.52944138]
[1736115456174,7.43766,213.94,213.92,2.3376]
[1736115459173,9.97766,213.94,213.92,2.3376]
[1736115462079,9.97766,213.94,213.85,1.4026]
[1736115462080,2.54,213.94,213.93,2.3375]
[1736115464973,9.97766,213.96,213.93,2.3375]
[1736115466581,7.43766,213.96,213.93,2.3375]
[1736115466779,9.97766,213.96,213.93,2.3375]
[1736115467077,2.54,213.96,213.93,2.3375]
[1736115467278,9.97766,213.96,213.93,2.3375]
[1736115472177,7.43766,213.96,213.93,2.3375]
[1736115472380,9.97766,213.96,213.93,2.3375]
[1736115478095,2.54,213.96,213.93,2.3375]
[1736115478290,9.97766,213.96,213.93,2.3375]
[1736115485893,2.54,213.96,213.93,2.3375]
[1736115497905,1.4014,214.04,213.85,1.4026]
[1736115497906,1.4014,214.04,213.92,7.43766]
[1736115498104,7.43766,214.01,213.94,7.43766]
[1736115498307,56.86047996,214.01,213.94,7.43766]
[1736115498604,56.86047996,214.01,213.98,2.3369]
[1736115498803,54.32047996,214.01,213.98,2.3369]
[1736115501506,14.47518711,214.01,213.98,2.3369]
[1736115503108,7.03752711,214.01,213.94,7.43766]
[1736115503411,14.47518711,214.01,213.99,2.3368]
[1736115505009,14.47518711,214.01,214.0,2.3367]
[1736115505811,7.03752711,214.01,214.0,2.3367]
[1736115506210,14.47518711,214.01,214.0,2.3367]
[1736115527427,14.47518711,214.01,213.92,4.4811]
[1736115527730,7.43766,213.95,213.92,4.4811]
[1736115528445,7.43766,213.95,213.94,2.3374]
[1736115534035,7.43766,213.97,213.92,4.4811]
[1736115534234,7.43766,213.97,213.96,2.3372]
[1736115540840,7.03752711,214.01,213.92,11.91876]
[1736115541042,2.54,214.0,213.97,2.3371]
[1736115543038,2.54,214.0,213.92,11.91876]
[1736115544445,9.97766,214.0,213.97,2.3371]